[Event "Late-Titled-Tuesday-Blitz-April-30-2024"]
[Site "Chess.com"]
[Date "2024.04.30"]
[Round "2"]
[White "Real_taiatai"]
[Black "Janh4"]
[Result "1/2-1/2"]
[WhiteElo "2474"]
[BlackElo "2202"]
[TimeControl "180+1"]
[EndTime "14:17:03 PDT"]
[Termination "Game drawn by repetition"]

1. d4 {[%clk 0:03:00.9]} 1... d5 {[%clk 0:02:59.6]} 2. c4 {[%clk 0:03:00.8]}
2... Nc6 {[%clk 0:02:58.6]} 3. cxd5 {[%clk 0:02:59.6]} 3... Qxd5 {[%clk
0:02:58.4]} 4. Nf3 {[%clk 0:03:00]} 4... e5 {[%clk 0:02:57.4]} 5. Nc3 {[%clk
0:02:59.8]} 5... Bb4 {[%clk 0:02:57.3]} 6. e3 {[%clk 0:02:54.7]} 6... Bg4 {[%clk
0:02:48.8]} 7. Bd2 {[%clk 0:02:53.1]} 7... Bxc3 {[%clk 0:02:48.6]} 8. bxc3
{[%clk 0:02:53.9]} 8... e4 {[%clk 0:02:48.9]} 9. c4 {[%clk 0:02:50.4]} 9... Qd6
{[%clk 0:02:48.7]} 10. h3 {[%clk 0:02:49.4]} 10... Qh6 {[%clk 0:02:48.2]} 11.
hxg4 {[%clk 0:02:36.4]} 11... Qxh1 {[%clk 0:02:47.6]} 12. Ng5 {[%clk 0:02:35.9]}
12... Nf6 {[%clk 0:02:39]} 13. Qb3 {[%clk 0:02:24.7]} 13... O-O {[%clk
0:01:55.6]} 14. Qxb7 {[%clk 0:02:23]} 14... Nxg4 {[%clk 0:01:42.9]} 15. Qxc6
{[%clk 0:02:19]} 15... Nh2 {[%clk 0:01:42.6]} 16. Ke2 {[%clk 0:02:17]} 16...
Nxf1 {[%clk 0:01:42.3]} 17. Rxf1 {[%clk 0:02:15.5]} 17... Qh5+ {[%clk
0:01:42.1]} 18. Nf3 {[%clk 0:02:15.5]} 18... exf3+ {[%clk 0:01:41.6]} 19. gxf3
{[%clk 0:02:08]} 19... Qg6 {[%clk 0:01:27.3]} 20. Qa4 {[%clk 0:01:48.6]} 20...
Rfb8 {[%clk 0:01:16.8]} 21. Bc3 {[%clk 0:01:43.4]} 21... h5 {[%clk 0:01:05.6]}
22. Rh1 {[%clk 0:01:41.8]} 22... Rb1 {[%clk 0:00:55.3]} 23. Rxb1 {[%clk
0:01:06.9]} 23... Qxb1 {[%clk 0:00:54.5]} 24. d5 {[%clk 0:01:05.8]} 24... h4
{[%clk 0:00:41.7]} 25. Be5 {[%clk 0:01:06.3]} 25... h3 {[%clk 0:00:25.9]} 26.
Qd7 {[%clk 0:01:01.8]} 26... Qc2+ {[%clk 0:00:17.5]} 27. Ke1 {[%clk 0:01:01.1]}
27... Qc1+ {[%clk 0:00:17.7]} 28. Ke2 {[%clk 0:01:01.1]} 28... Qc2+ {[%clk
0:00:18.1]} 29. Ke1 {[%clk 0:01:01.5]} 29... Qc1+ {[%clk 0:00:18.5]} 30. Ke2
{[%clk 0:01:01.9]} 30... Qc2+ {[%clk 0:00:18.9]} 1/2-1/2

[Event "Late-Titled-Tuesday-Blitz-April-30-2024"]
[Site "Chess.com"]
[Date "2024.04.30"]
[Round "2"]
[White "reevecanada"]
[Black "BogdanDeac"]
[Result "0-1"]
[WhiteElo "2631"]
[BlackElo "3066"]
[TimeControl "180+1"]
[EndTime "14:17:05 PDT"]
[Termination "BogdanDeac won by resignation"]

1. e4 {[%clk 0:02:56.2]} 1... c5 {[%clk 0:02:59.6]} 2. Nf3 {[%clk 0:02:55.5]}
2... e6 {[%clk 0:03:00]} 3. b3 {[%clk 0:02:54.5]} 3... a6 {[%clk 0:02:57.1]} 4.
Bb2 {[%clk 0:02:53.5]} 4... Nc6 {[%clk 0:02:57.7]} 5. d4 {[%clk 0:02:52.6]} 5...
cxd4 {[%clk 0:02:54.3]} 6. Nxd4 {[%clk 0:02:53.5]} 6... Qc7 {[%clk 0:02:50.9]}
7. Nd2 {[%clk 0:02:52.4]} 7... d6 {[%clk 0:02:40.9]} 8. Bd3 {[%clk 0:02:50.2]}
8... Bd7 {[%clk 0:02:37.9]} 9. Qe2 {[%clk 0:02:48.7]} 9... Nf6 {[%clk
0:02:37.8]} 10. O-O-O {[%clk 0:02:48.1]} 10... Nb4 {[%clk 0:02:36.7]} 11. Kb1
{[%clk 0:02:47.5]} 11... e5 {[%clk 0:02:32]} 12. N4f3 {[%clk 0:02:44.8]} 12...
Nxd3 {[%clk 0:02:28.3]} 13. Qxd3 {[%clk 0:02:41.8]} 13... Rd8 {[%clk 0:02:22.6]}
14. h3 {[%clk 0:02:36.3]} 14... Be7 {[%clk 0:02:20.6]} 15. g4 {[%clk 0:02:34.8]}
15... h6 {[%clk 0:02:20.7]} 16. Rdg1 {[%clk 0:02:29.5]} 16... Bb5 {[%clk
0:02:02.2]} 17. c4 {[%clk 0:02:25.3]} 17... Bc6 {[%clk 0:02:02.8]} 18. g5 {[%clk
0:02:24.6]} 18... hxg5 {[%clk 0:02:02.2]} 19. Nxg5 {[%clk 0:02:25.5]} 19... Nh5
{[%clk 0:01:56.1]} 20. Qf3 {[%clk 0:02:15.4]} 20... Nf4 {[%clk 0:01:46.3]} 21.
Qg4 {[%clk 0:02:08.6]} 21... Qd7 {[%clk 0:01:35.6]} 22. Qf3 {[%clk 0:01:43.7]}
22... f6 {[%clk 0:01:26.4]} 23. h4 {[%clk 0:01:36.9]} 23... fxg5 {[%clk
0:01:19.9]} 24. hxg5 {[%clk 0:01:37.8]} 24... Rxh1 {[%clk 0:01:19.8]} 25. Qxh1
{[%clk 0:01:36.9]} 25... Qe6 {[%clk 0:01:19.8]} 26. Bc3 {[%clk 0:01:03]} 26...
Qh3 {[%clk 0:01:16.8]} 27. Ba5 {[%clk 0:00:53.2]} 27... Qxh1 {[%clk 0:01:11.3]}
28. Rxh1 {[%clk 0:00:54.1]} 28... Rc8 {[%clk 0:01:11.6]} 29. Rh8+ {[%clk
0:00:48.1]} 29... Kd7 {[%clk 0:01:11]} 30. Rh7 {[%clk 0:00:48.1]} 30... Rg8
{[%clk 0:01:09.7]} 31. c5 {[%clk 0:00:48.1]} 31... dxc5 {[%clk 0:01:05.3]} 32.
f3 {[%clk 0:00:48.4]} 32... b5 {[%clk 0:01:02.6]} 33. a4 {[%clk 0:00:44.9]}
33... Bxg5 {[%clk 0:01:01.3]} 34. axb5 {[%clk 0:00:44.6]} 34... axb5 {[%clk
0:01:02]} 35. b4 {[%clk 0:00:44.5]} 35... c4 {[%clk 0:00:59.4]} 36. Kc2 {[%clk
0:00:44.1]} 36... Ne6 {[%clk 0:00:57]} 37. Nb1 {[%clk 0:00:42.4]} 37... Bh6
{[%clk 0:00:56]} 38. Nc3 {[%clk 0:00:40.8]} 38... Ng5 {[%clk 0:00:55.8]} 0-1

[Event "Late-Titled-Tuesday-Blitz-April-30-2024"]
[Site "Chess.com"]
[Date "2024.04.30"]
[Round "2"]
[White "protectiago"]
[Black "marianokar"]
[Result "0-1"]
[WhiteElo "2040"]
[BlackElo "2447"]
[TimeControl "180+1"]
[EndTime "14:17:06 PDT"]
[Termination "marianokar won on time"]

1. d4 {[%clk 0:02:58]} 1... c5 {[%clk 0:02:34.5]} 2. d5 {[%clk 0:02:56.4]} 2...
e5 {[%clk 0:02:34.1]} 3. c4 {[%clk 0:02:55.6]} 3... d6 {[%clk 0:02:34.7]} 4. g3
{[%clk 0:02:55.9]} 4... Be7 {[%clk 0:02:35.2]} 5. Bg2 {[%clk 0:02:56.1]} 5...
Bg5 {[%clk 0:02:35.7]} 6. Nf3 {[%clk 0:02:53.4]} 6... Bxc1 {[%clk 0:02:34.5]} 7.
Qxc1 {[%clk 0:02:53.6]} 7... Ne7 {[%clk 0:02:35.1]} 8. Nc3 {[%clk 0:02:52.4]}
8... O-O {[%clk 0:02:35.6]} 9. e4 {[%clk 0:02:51.5]} 9... h6 {[%clk 0:02:35.9]}
10. O-O {[%clk 0:02:51.1]} 10... f5 {[%clk 0:02:35.4]} 11. Nd2 {[%clk
0:02:48.4]} 11... f4 {[%clk 0:02:35.1]} 12. Rb1 {[%clk 0:02:36.6]} 12... g5
{[%clk 0:02:33.9]} 13. b4 {[%clk 0:02:30.4]} 13... cxb4 {[%clk 0:02:33.2]} 14.
Rxb4 {[%clk 0:02:28.2]} 14... Na6 {[%clk 0:02:33.8]} 15. Rb2 {[%clk 0:02:20.3]}
15... Ng6 {[%clk 0:02:30.7]} 16. Nb5 {[%clk 0:02:15.7]} 16... b6 {[%clk
0:02:27.7]} 17. f3 {[%clk 0:02:09.1]} 17... h5 {[%clk 0:02:25.4]} 18. Nb3 {[%clk
0:01:56.9]} 18... Qe7 {[%clk 0:02:14.6]} 19. a4 {[%clk 0:01:36.1]} 19... Bd7
{[%clk 0:02:14.5]} 20. a5 {[%clk 0:01:32.6]} 20... Rfc8 {[%clk 0:02:13.5]} 21.
Rc2 {[%clk 0:01:22.4]} 21... Nb4 {[%clk 0:02:09.7]} 22. Rc3 {[%clk 0:01:21.2]}
22... Na2 {[%clk 0:02:05.1]} 23. Qa3 {[%clk 0:01:18]} 23... Nxc3 {[%clk
0:01:52.4]} 24. Nxc3 {[%clk 0:01:17.8]} 24... fxg3 {[%clk 0:01:47.7]} 25. c5
{[%clk 0:01:13.5]} 25... h4 {[%clk 0:01:48.6]} 26. c6 {[%clk 0:00:52.9]} 26...
gxh2+ {[%clk 0:01:48.1]} 27. Kh1 {[%clk 0:00:45.9]} 27... Be8 {[%clk 0:01:44.3]}
28. Bh3 {[%clk 0:00:42.1]} 28... Rd8 {[%clk 0:01:38.8]} 29. Nb5 {[%clk
0:00:40.3]} 29... Nf4 {[%clk 0:01:37.2]} 30. c7 {[%clk 0:00:36.2]} 30... Bxb5
{[%clk 0:01:36]} 31. cxd8=Q+ {[%clk 0:00:34.3]} 31... Rxd8 {[%clk 0:01:36.5]}
32. Qb4 {[%clk 0:00:06.4]} 32... Bxf1 {[%clk 0:01:34.2]} 33. Bxf1 {[%clk
0:00:06.3]} 33... Qc7 {[%clk 0:01:34.2]} 34. axb6 {[%clk 0:00:05.1]} 34... Qxb6
{[%clk 0:01:33.4]} 35. Qa4 {[%clk 0:00:03.7]} 35... Qf2 {[%clk 0:01:30.8]} 0-1

[Event "Late-Titled-Tuesday-Blitz-April-30-2024"]
[Site "Chess.com"]
[Date "2024.04.30"]
[Round "2"]
[White "rhungaski"]
[Black "GMG"]
[Result "1-0"]
[WhiteElo "2570"]
[BlackElo "2795"]
[TimeControl "180+1"]
[EndTime "14:17:07 PDT"]
[Termination "rhungaski won by resignation"]

1. b3 {[%clk 0:03:00.9]} 1... d6 {[%clk 0:02:56.5]} 2. Bb2 {[%clk 0:03:00.4]}
2... c5 {[%clk 0:02:57.1]} 3. c4 {[%clk 0:02:57.8]} 3... Nc6 {[%clk 0:02:54.5]}
4. g3 {[%clk 0:02:57.9]} 4... e5 {[%clk 0:02:53]} 5. Bg2 {[%clk 0:02:57.8]} 5...
g6 {[%clk 0:02:53.6]} 6. Nc3 {[%clk 0:02:57.4]} 6... Nge7 {[%clk 0:02:50.7]} 7.
e3 {[%clk 0:02:55.8]} 7... Bg7 {[%clk 0:02:50.7]} 8. Nge2 {[%clk 0:02:54]} 8...
O-O {[%clk 0:02:40.4]} 9. d3 {[%clk 0:02:47.9]} 9... Bf5 {[%clk 0:02:31.6]} 10.
h3 {[%clk 0:02:38.9]} 10... Qd7 {[%clk 0:02:30.9]} 11. a3 {[%clk 0:02:25.7]}
11... Rab8 {[%clk 0:02:29.3]} 12. Nd5 {[%clk 0:02:18]} 12... Nxd5 {[%clk
0:02:27.7]} 13. cxd5 {[%clk 0:02:17]} 13... Ne7 {[%clk 0:02:19.7]} 14. e4 {[%clk
0:02:08.8]} 14... b5 {[%clk 0:02:17.6]} 15. exf5 {[%clk 0:02:05.5]} 15... Nxf5
{[%clk 0:02:18.3]} 16. O-O {[%clk 0:02:03.9]} 16... b4 {[%clk 0:02:18.6]} 17. a4
{[%clk 0:02:01.6]} 17... h5 {[%clk 0:02:18.2]} 18. h4 {[%clk 0:01:53.4]} 18...
Nh6 {[%clk 0:02:17.4]} 19. Qd2 {[%clk 0:01:47.9]} 19... f5 {[%clk 0:02:16.7]}
20. f4 {[%clk 0:01:45.3]} 20... Nf7 {[%clk 0:02:11.9]} 21. Kh2 {[%clk
0:01:37.1]} 21... Rfe8 {[%clk 0:02:10.6]} 22. Rae1 {[%clk 0:01:34.7]} 22... Re7
{[%clk 0:02:02.2]} 23. Ng1 {[%clk 0:01:33.4]} 23... Rbe8 {[%clk 0:01:54.9]} 24.
Nf3 {[%clk 0:01:22.2]} 24... Nh6 {[%clk 0:01:47]} 25. Bh3 {[%clk 0:01:15.1]}
25... Nf7 {[%clk 0:01:45.9]} 26. Ba1 {[%clk 0:00:46.8]} 26... exf4 {[%clk
0:01:32.5]} 27. gxf4 {[%clk 0:00:46.8]} 27... Bxa1 {[%clk 0:01:28.2]} 28. Rxe7
{[%clk 0:00:45.4]} 28... Rxe7 {[%clk 0:01:24.1]} 29. Rxa1 {[%clk 0:00:45.4]}
29... Qe8 {[%clk 0:01:24.8]} 30. Re1 {[%clk 0:00:41]} 30... a5 {[%clk
0:01:15.9]} 31. Kg3 {[%clk 0:00:38.3]} 31... Nd8 {[%clk 0:01:11.7]} 32. Rxe7
{[%clk 0:00:31.7]} 32... Qxe7 {[%clk 0:01:12.6]} 33. Ng5 {[%clk 0:00:32.2]}
33... Qf6 {[%clk 0:01:10.1]} 34. Qe2 {[%clk 0:00:24.5]} 34... Kf8 {[%clk
0:01:09.1]} 35. Nh7+ {[%clk 0:00:24.6]} 1-0

[Event "Late-Titled-Tuesday-Blitz-April-30-2024"]
[Site "Chess.com"]
[Date "2024.04.30"]
[Round "2"]
[White "trriinu"]
[Black "Payyappat"]
[Result "0-1"]
[WhiteElo "2250"]
[BlackElo "2504"]
[TimeControl "180+1"]
[EndTime "14:17:07 PDT"]
[Termination "Payyappat won by resignation"]

1. e4 {[%clk 0:03:00]} 1... c6 {[%clk 0:02:58.4]} 2. Nc3 {[%clk 0:02:59.8]} 2...
d5 {[%clk 0:02:59.3]} 3. Nf3 {[%clk 0:03:00.3]} 3... dxe4 {[%clk 0:02:58.3]} 4.
Nxe4 {[%clk 0:03:01.2]} 4... Nf6 {[%clk 0:02:59.2]} 5. Qe2 {[%clk 0:02:57.4]}
5... Nxe4 {[%clk 0:02:59.1]} 6. Qxe4 {[%clk 0:02:57.6]} 6... Nd7 {[%clk
0:03:00]} 7. Bc4 {[%clk 0:02:57.6]} 7... Nf6 {[%clk 0:03:00.9]} 8. Ne5 {[%clk
0:02:58]} 8... e6 {[%clk 0:03:00.7]} 9. Qe2 {[%clk 0:02:58.2]} 9... b5 {[%clk
0:02:59.9]} 10. Bd3 {[%clk 0:02:57.5]} 10... Qc7 {[%clk 0:02:58.3]} 11. b3
{[%clk 0:02:53.1]} 11... a6 {[%clk 0:02:55.2]} 12. Bb2 {[%clk 0:02:52.3]} 12...
Bd6 {[%clk 0:02:53.4]} 13. O-O {[%clk 0:02:51.5]} 13... Bb7 {[%clk 0:02:50.2]}
14. a4 {[%clk 0:02:51.4]} 14... O-O-O {[%clk 0:02:46.2]} 15. axb5 {[%clk
0:01:45.3]} 15... cxb5 {[%clk 0:02:47.1]} 16. Ra2 {[%clk 0:01:41]} 16... Nd5
{[%clk 0:02:36.8]} 17. Rfa1 {[%clk 0:01:01.3]} 17... Nb4 {[%clk 0:02:33.9]} 18.
Ra5 {[%clk 0:00:50.7]} 18... Nxd3 {[%clk 0:02:23.4]} 19. Nxd3 {[%clk 0:00:47.6]}
19... Bxh2+ {[%clk 0:02:19.5]} 20. Kh1 {[%clk 0:00:47.9]} 20... Rd5 {[%clk
0:02:07.8]} 21. Nb4 {[%clk 0:00:37]} 21... Rg5 {[%clk 0:02:03.2]} 22. f3 {[%clk
0:00:33.5]} 22... Rh5 {[%clk 0:01:55.1]} 23. Nxa6 {[%clk 0:00:22.6]} 23... Be5+
{[%clk 0:01:29.3]} 24. Kg1 {[%clk 0:00:21]} 24... Qb6+ {[%clk 0:01:25.6]} 25. d4
{[%clk 0:00:16.6]} 25... Bxd4+ {[%clk 0:01:22.3]} 26. Bxd4 {[%clk 0:00:16.6]}
26... Qxd4+ {[%clk 0:01:23.2]} 27. Qf2 {[%clk 0:00:15.6]} 27... Rh1+ {[%clk
0:01:19.2]} 28. Kxh1 {[%clk 0:00:16]} 28... Qxf2 {[%clk 0:01:19.6]} 29. Rxb5
{[%clk 0:00:15.2]} 29... Qh4+ {[%clk 0:01:16.7]} 30. Kg1 {[%clk 0:00:15.2]}
30... Qd4+ {[%clk 0:01:17.2]} 31. Kh2 {[%clk 0:00:14]} 31... Qxa1 {[%clk
0:01:16.3]} 32. Rc5+ {[%clk 0:00:11.6]} 32... Kd8 {[%clk 0:01:14.9]} 0-1

[Event "Late-Titled-Tuesday-Blitz-April-30-2024"]
[Site "Chess.com"]
[Date "2024.04.30"]
[Round "2"]
[White "Agustin_Meza"]
[Black "IamSchrodingersCat"]
[Result "0-1"]
[WhiteElo "2138"]
[BlackElo "2667"]
[TimeControl "180+1"]
[EndTime "14:17:09 PDT"]
[Termination "IamSchrodingersCat won by resignation"]

1. e4 {[%clk 0:03:00]} 1... c5 {[%clk 0:02:59.6]} 2. Nf3 {[%clk 0:02:59.8]} 2...
d6 {[%clk 0:02:59.4]} 3. d4 {[%clk 0:02:59.3]} 3... cxd4 {[%clk 0:03:00.3]} 4.
Nxd4 {[%clk 0:03:00.2]} 4... Nf6 {[%clk 0:03:00.8]} 5. Nc3 {[%clk 0:03:00]} 5...
g6 {[%clk 0:03:00.9]} 6. Bc4 {[%clk 0:02:59.4]} 6... Bg7 {[%clk 0:03:00.8]} 7.
Bb3 {[%clk 0:02:59.3]} 7... O-O {[%clk 0:03:00.9]} 8. h3 {[%clk 0:02:58.3]} 8...
Nc6 {[%clk 0:03:00.8]} 9. Be3 {[%clk 0:02:58.1]} 9... Bd7 {[%clk 0:02:59.2]} 10.
O-O {[%clk 0:02:55.8]} 10... Rc8 {[%clk 0:02:57.5]} 11. a3 {[%clk 0:02:48.4]}
11... Na5 {[%clk 0:02:54.7]} 12. Ba2 {[%clk 0:02:47.3]} 12... Rxc3 {[%clk
0:02:49.9]} 13. bxc3 {[%clk 0:02:42.7]} 13... Nxe4 {[%clk 0:02:50.2]} 14. Bd2
{[%clk 0:02:34.3]} 14... Qc7 {[%clk 0:02:43.2]} 15. Ne2 {[%clk 0:01:21.7]} 15...
Bb5 {[%clk 0:02:25.5]} 16. Rb1 {[%clk 0:01:16.3]} 16... Ba6 {[%clk 0:02:23.4]}
17. Bd5 {[%clk 0:01:05.8]} 17... Nxd2 {[%clk 0:02:03.2]} 18. Qxd2 {[%clk
0:01:03.6]} 18... e6 {[%clk 0:01:59.1]} 19. Bf3 {[%clk 0:01:00.9]} 19... Nc4
{[%clk 0:01:54.1]} 20. Qc1 {[%clk 0:00:57.9]} 20... d5 {[%clk 0:01:49.2]} 21.
Nd4 {[%clk 0:00:47.4]} 21... Ne5 {[%clk 0:01:46.8]} 22. Re1 {[%clk 0:00:36]}
22... Qxc3 {[%clk 0:01:44.2]} 23. Qf4 {[%clk 0:00:26.2]} 23... Qxd4 {[%clk
0:01:38.5]} 24. Qxd4 {[%clk 0:00:13.1]} 24... Nxf3+ {[%clk 0:01:38.5]} 25. gxf3
{[%clk 0:00:14]} 25... Bxd4 {[%clk 0:01:38.9]} 26. c3 {[%clk 0:00:14.2]} 26...
Bxc3 {[%clk 0:01:37.6]} 27. Rec1 {[%clk 0:00:14.4]} 27... Be5 {[%clk 0:01:37.2]}
28. Kg2 {[%clk 0:00:13.7]} 28... b6 {[%clk 0:01:36]} 29. a4 {[%clk 0:00:13.8]}
29... Bc4 {[%clk 0:01:35.7]} 30. a5 {[%clk 0:00:12.7]} 30... bxa5 {[%clk
0:01:36.6]} 31. Rb7 {[%clk 0:00:12.3]} 31... Ra8 {[%clk 0:01:36.2]} 32. Rcb1
{[%clk 0:00:12.3]} 32... a4 {[%clk 0:01:35.9]} 33. f4 {[%clk 0:00:09]} 33...
Bxf4 {[%clk 0:01:33.2]} 34. Ra1 {[%clk 0:00:09.4]} 34... d4 {[%clk 0:01:31.5]}
35. Rxa4 {[%clk 0:00:09.1]} 35... Bd5+ {[%clk 0:01:31.9]} 36. f3 {[%clk
0:00:09.3]} 36... Bxb7 {[%clk 0:01:32.8]} 37. Rxd4 {[%clk 0:00:09.3]} 37... e5
{[%clk 0:01:32.4]} 38. Rxf4 {[%clk 0:00:09.2]} 38... exf4 {[%clk 0:01:32.2]} 0-1

[Event "Late-Titled-Tuesday-Blitz-April-30-2024"]
[Site "Chess.com"]
[Date "2024.04.30"]
[Round "2"]
[White "HansOnTwitch"]
[Black "Crazy_girl99"]
[Result "1-0"]
[WhiteElo "3207"]
[BlackElo "2658"]
[TimeControl "180+1"]
[EndTime "14:17:19 PDT"]
[Termination "HansOnTwitch won on time"]

1. e4 {[%clk 0:02:44.4]} 1... e5 {[%clk 0:02:56.7]} 2. Nf3 {[%clk 0:02:44.2]}
2... Nc6 {[%clk 0:02:56.7]} 3. Bc4 {[%clk 0:02:41.6]} 3... Bc5 {[%clk 0:02:56]}
4. d3 {[%clk 0:02:41.9]} 4... Nf6 {[%clk 0:02:53.8]} 5. O-O {[%clk 0:02:42.6]}
5... d6 {[%clk 0:02:53.6]} 6. c3 {[%clk 0:02:42.9]} 6... a6 {[%clk 0:02:53.8]}
7. Nbd2 {[%clk 0:02:41.6]} 7... Ba7 {[%clk 0:02:53.2]} 8. Re1 {[%clk 0:02:42.1]}
8... O-O {[%clk 0:02:50.8]} 9. Nf1 {[%clk 0:02:41.1]} 9... Na5 {[%clk
0:02:48.5]} 10. Bb3 {[%clk 0:02:41.2]} 10... Nxb3 {[%clk 0:02:48.5]} 11. axb3
{[%clk 0:02:42.1]} 11... h6 {[%clk 0:02:47.9]} 12. h3 {[%clk 0:02:41.9]} 12...
Be6 {[%clk 0:02:47.3]} 13. Ng3 {[%clk 0:02:40.1]} 13... c6 {[%clk 0:02:44.6]}
14. d4 {[%clk 0:02:40.2]} 14... Qc7 {[%clk 0:02:35.6]} 15. Be3 {[%clk
0:02:39.9]} 15... Rad8 {[%clk 0:02:28.7]} 16. Qc1 {[%clk 0:02:35.6]} 16... exd4
{[%clk 0:02:11]} 17. Bxh6 {[%clk 0:02:13.7]} 17... gxh6 {[%clk 0:02:02.1]} 18.
Qxh6 {[%clk 0:02:14.6]} 18... Nh7 {[%clk 0:02:00.2]} 19. Ng5 {[%clk 0:02:14]}
19... Nxg5 {[%clk 0:01:37.2]} 20. Qxg5+ {[%clk 0:02:13.8]} 20... Kh7 {[%clk
0:01:37]} 21. Qh4+ {[%clk 0:01:33]} 21... Kg6 {[%clk 0:01:33.8]} 22. f4 {[%clk
0:01:30]} 22... dxc3+ {[%clk 0:01:25.3]} 23. Kh2 {[%clk 0:01:29.3]} 23... f5
{[%clk 0:00:38.3]} 24. exf5+ {[%clk 0:01:25.9]} 24... Bxf5 {[%clk 0:00:38.4]}
25. Qg5+ {[%clk 0:01:23.8]} 25... Kh7 {[%clk 0:00:38.5]} 26. Re7+ {[%clk
0:01:22.9]} 26... Qxe7 {[%clk 0:00:35.7]} 27. Qxe7+ {[%clk 0:01:23.8]} 27... Kg8
{[%clk 0:00:29.4]} 28. Qg5+ {[%clk 0:01:23.2]} 28... Kh8 {[%clk 0:00:14.5]} 29.
Nxf5 {[%clk 0:01:22.4]} 29... Rd7 {[%clk 0:00:12.7]} 30. bxc3 {[%clk 0:01:20.9]}
30... Rdf7 {[%clk 0:00:06.9]} 31. Qh6+ {[%clk 0:01:20.3]} 31... Kg8 {[%clk
0:00:06.5]} 32. Qg6+ {[%clk 0:01:20.8]} 32... Kh8 {[%clk 0:00:06.6]} 33. g4
{[%clk 0:01:17]} 33... d5 {[%clk 0:00:03.3]} 34. Re1 {[%clk 0:01:16.6]} 34...
Bb8 {[%clk 0:00:02.7]} 35. Qh6+ {[%clk 0:01:16]} 35... Kg8 {[%clk 0:00:02.8]}
36. Re6 {[%clk 0:01:16.1]} 1-0

[Event "Late-Titled-Tuesday-Blitz-April-30-2024"]
[Site "Chess.com"]
[Date "2024.04.30"]
[Round "2"]
[White "amintabatabaei"]
[Black "Oleg_Papayan"]
[Result "1-0"]
[WhiteElo "3108"]
[BlackElo "2645"]
[TimeControl "180+1"]
[EndTime "14:17:20 PDT"]
[Termination "amintabatabaei won by checkmate"]

1. Nf3 {[%clk 0:03:00.9]} 1... Nf6 {[%clk 0:02:59.7]} 2. c4 {[%clk 0:03:01.1]}
2... e6 {[%clk 0:02:59.6]} 3. b3 {[%clk 0:03:01.6]} 3... d5 {[%clk 0:02:59.7]}
4. Bb2 {[%clk 0:03:02.4]} 4... c5 {[%clk 0:02:55.7]} 5. e3 {[%clk 0:03:01.2]}
5... Nc6 {[%clk 0:02:54.6]} 6. cxd5 {[%clk 0:03:00.5]} 6... Nxd5 {[%clk
0:02:48.8]} 7. Nc3 {[%clk 0:02:52]} 7... Nf6 {[%clk 0:02:29.9]} 8. Bb5 {[%clk
0:02:50.5]} 8... Qb6 {[%clk 0:02:18.4]} 9. Ne5 {[%clk 0:02:47.7]} 9... Bd7
{[%clk 0:02:12.3]} 10. Nxd7 {[%clk 0:02:47.2]} 10... Nxd7 {[%clk 0:02:13.2]} 11.
O-O {[%clk 0:02:46.1]} 11... Be7 {[%clk 0:02:00]} 12. Rc1 {[%clk 0:02:41.4]}
12... O-O {[%clk 0:01:58.1]} 13. Qe2 {[%clk 0:02:40.1]} 13... a6 {[%clk
0:01:55.1]} 14. Bd3 {[%clk 0:02:39.8]} 14... Nce5 {[%clk 0:01:27]} 15. Bb1
{[%clk 0:02:39.7]} 15... Rfd8 {[%clk 0:01:12.4]} 16. f4 {[%clk 0:02:38.7]} 16...
Ng6 {[%clk 0:01:09.3]} 17. f5 {[%clk 0:02:39]} 17... exf5 {[%clk 0:01:10.2]} 18.
Rxf5 {[%clk 0:02:38.8]} 18... Nf6 {[%clk 0:00:55.9]} 19. Rcf1 {[%clk 0:02:39.3]}
19... Qd6 {[%clk 0:00:53.1]} 20. Rxf6 {[%clk 0:02:22.4]} 20... gxf6 {[%clk
0:00:23.9]} 21. Ne4 {[%clk 0:02:22.4]} 21... Qe6 {[%clk 0:00:20.3]} 22. Qh5
{[%clk 0:02:03]} 22... Rd5 {[%clk 0:00:15.8]} 23. Qh6 {[%clk 0:02:02.9]} 23...
Rf5 {[%clk 0:00:16.1]} 24. Rxf5 {[%clk 0:01:45.7]} 24... Qxf5 {[%clk 0:00:17]}
25. Nxf6+ {[%clk 0:01:45]} 25... Qxf6 {[%clk 0:00:17.1]} 26. Bxf6 {[%clk
0:01:44.6]} 26... Bxf6 {[%clk 0:00:18]} 27. h4 {[%clk 0:01:37.9]} 27... Bg7
{[%clk 0:00:16.2]} 28. Qg5 {[%clk 0:01:35.8]} 28... h6 {[%clk 0:00:04.5]} 29.
Qxc5 {[%clk 0:01:30.7]} 29... Rd8 {[%clk 0:00:05.1]} 30. Bxg6 {[%clk 0:01:29.3]}
30... fxg6 {[%clk 0:00:05.3]} 31. d4 {[%clk 0:01:29.7]} 31... b5 {[%clk
0:00:03.1]} 32. Qe7 {[%clk 0:01:28]} 32... Rc8 {[%clk 0:00:01.9]} 33. Qe6+
{[%clk 0:01:28.4]} 33... Kh7 {[%clk 0:00:02.1]} 34. Qxc8 {[%clk 0:01:29.3]}
34... g5 {[%clk 0:00:02.7]} 35. Qxa6 {[%clk 0:01:29.9]} 35... gxh4 {[%clk
0:00:02.9]} 36. Qxb5 {[%clk 0:01:30.8]} 36... h3 {[%clk 0:00:03.1]} 37. Qd3+
{[%clk 0:01:31.7]} 37... Kg8 {[%clk 0:00:03.3]} 38. gxh3 {[%clk 0:01:32.6]}
38... Kf7 {[%clk 0:00:03.4]} 39. a4 {[%clk 0:01:33.5]} 39... Bf6 {[%clk
0:00:03.9]} 40. d5 {[%clk 0:01:34.4]} 40... Ke7 {[%clk 0:00:03.9]} 41. Qf1
{[%clk 0:01:35.3]} 41... Be5 {[%clk 0:00:04]} 42. a5 {[%clk 0:01:36.2]} 42... h5
{[%clk 0:00:04.8]} 43. a6 {[%clk 0:01:37.1]} 43... h4 {[%clk 0:00:05.7]} 44. Qb5
{[%clk 0:01:37.7]} 44... Bd6 {[%clk 0:00:06.2]} 45. Qc6 {[%clk 0:01:38.6]} 45...
Kf6 {[%clk 0:00:07.1]} 46. a7 {[%clk 0:01:39.4]} 46... Kf5 {[%clk 0:00:08]} 47.
a8=Q {[%clk 0:01:40.3]} 47... Ke4 {[%clk 0:00:08.9]} 48. Qae8+ {[%clk
0:01:40.2]} 48... Kf3 {[%clk 0:00:09.8]} 49. Qf7+ {[%clk 0:01:40.4]} 49... Kg3
{[%clk 0:00:10.7]} 50. Qg6+ {[%clk 0:01:40.4]} 50... Kxh3 {[%clk 0:00:11.2]} 51.
Qd7# {[%clk 0:01:40.3]} 1-0